Cogmind - Beta 14 @@@ ROGUE MODE // 2024.09.03 @ 20:12:15 Player: DrZlooooo Result: Destroyed by G-47 Trooper with Particle Gun Performance ------------- Evolutions (0) 0 Regions Visited (1) 200 Robots Destroyed (12) 60 Value Destroyed (285) 285 Prototype IDs (1) 20 Alien Tech Used (0) 0 Bonus (0) 0 TOTAL SCORE: 565 Bonus ------- None Cogmind --------- Core Integrity 0/250 Matter 260/300 Energy 100/100 System Corruption 0% Temperature Cool (91) Movement Walking (190) Ox1 Location -10/Materials Parts ------- > --- POWER (1) -------- (None) > --- PROPULSION (2) --- Aluminum Leg > --- UTILITY (2) ------ Medium Storage Unit > --- WEAPON (2) ------- Assault Rifle Assault Rifle > --- INVENTORY (10) --- Light Ion Engine Light Ion Engine Visual Processing Unit Improved Terrain Scanner Shield Generator Mining Laser Peak State ------------ > --- POWER ------------ Light Ion Engine > --- PROPULSION ------- Aluminum Leg Aluminum Leg > --- UTILITY ---------- Small Storage Unit Improved Terrain Scanner > --- WEAPON ----------- Improved EM Shotgun Improved EM Shotgun > --- INVENTORY -------- Light Ion Engine Light Ion Engine Medium Laser Assault Rifle Assault Rifle Mining Laser [Rating: 13] Favorites ----------- Power Light Ion Engine Engine Light Ion Engine Propulsion Aluminum Leg Leg Aluminum Leg Utility Shield Generator Device Shield Generator Storage Medium Storage Unit Weapon Improved EM Shotgun Energy Gun Improved EM Shotgun Ballistic Gun Assault Rifle Build | -11 -10 ------- Run | Yrd Mat Slots Evolved . | . . Power . | . . Propulsion . | . . Utility . | . . Weapon . | . . Parts Attached 16 | 7 9 Power 1 | 1 . Engine 1 | 1 . Core . | . . Reactor . | . . Propulsion 5 | 2 3 Treads . | . . Leg 5 | 2 3 Wheel . | . . Hover . | . . Flight . | . . Utility 4 | 2 2 Device 2 | 1 1 Storage 2 | 1 1 Processor . | . . Hackware . | . . Protection . | . . Artifact . | . . Weapon 6 | 2 4 Energy Gun 2 | . 2 Energy Cannon . | . . Ballistic Gun 4 | 2 2 Ballistic Cannon . | . . Launcher . | . . Special Weapon . | . . Impact Weapon . | . . Slashing Weapon . | . . Piercing Weapon . | . . Special Melee Weapon . | . . Unidentified Prototypes 1 | . 1 Parts Lost 7 | . 7 Power 1 | . 1 Propulsion 3 | . 3 Utility 1 | . 1 Weapon 2 | . 2 Highest Loss Streak 6 | . 6 To Critical Strikes . | . . Average Slot Usage (%) 91 | . 91 Engine 13 | . 13 Leg 21 | . 21 Device 12 | . 12 Storage 14 | . 14 Energy Gun 25 | . 25 Ballistic Gun 2 | . 2 Peak Build Rating 13 | 9 13 Average Rating 10 | 7 12 On Entrance 4 | . 9 Naked Turns . | . . Heaviest Build 21 | 13 21 Greatest Support 20 | 20 20 Greatest Overweight (x) 2 | 1 2 Average Overweight (x) . | . . Largest Inventory Capacity 10 | 8 10 Average Capacity 9 | 7 9 Most Carried 9 | 4 9 Average Carried 6 | 2 7 Final Capacity 10 | 8 10 Final Carried 6 | 4 6 Class Distribution -------------------- 100% | Mutant Dominant Class ---------------- Mutant | -10/Materials Resources | -11 -10 ----------- Run | Yrd Mat Matter Collected 384 | 324 60 Remotely . | . . Salvage Created 463 | 122 341 Parts 35 | 13 22 Haulers Intercepted . | . . Recyclers Shooed 1 | . 1 Parts Field Recycled . | . . Retrieved Matter . | . . Parts Self-Destructed . | . . Prevented . | . . Kills | -11 -10 ------- Run | Yrd Mat Combat Hostiles Destroyed 6 | . 6 Guns 5 | . 5 AOE 1 | . 1 Classes Destroyed 5 | 3 2 Worker 2 | 1 1 Tunneler 2 | 2 . Recycler 1 | 1 . Watcher 1 | . 1 Grunt 6 | . 6 Best Kill Streak 3 | 3 3 Combat Bots Only 3 | . 3 Max Kills in Single Turn 2 | 1 2 Gunslinging . | . . Exploded 1 | . 1 Melee . | . . Uniques/NPCs Destroyed . | . . Combat | -11 -10 -------- Run | Yrd Mat Hostile Shots Fired 60 | . 60 Missed 12 | . 12 Damage Taken 875 | . 875 Core 252 | . 252 Absorbed by Shields 54 | . 54 Core Remaining (%) 100 | 100 . Volleys Fired 28 | 9 19 Largest 2 | 2 2 Hottest 90 | 40 90 Shots Fired 56 | 18 38 Gun 56 | 18 38 Cannon . | . . Launcher . | . . Special . | . . Kinetic 28 | 18 10 Thermal . | . . Explosive . | . . Electromagnetic 28 | . 28 Robot Hit Streak 6 | 5 6 Robot Miss Streak 5 | 1 5 Penetration Max . | . . Secondary Targets 1 | . 1 Max Gunslinging Chain 1 | . 1 Shots Hit Robots 33 | 12 21 Core Hits 19 | 5 14 Critical Kills . | . . Critical Parts Destroyed . | . . Critical Strikes . | . . Melee Attacks . | . . Impact . | . . Slashing . | . . Piercing . | . . Sneak Attacks . | . . Combat Hostiles . | . . Follow-up Attacks . | . . Damage Inflicted 578 | 153 425 Guns 544 | 148 396 Cannons . | . . Explosions 23 | . 23 Melee . | . . Ramming 11 | 5 6 Kinetic 184 | 148 36 Thermal 23 | . 23 Explosive . | . . Electromagnetic 360 | . 360 Impact . | . . Slashing . | . . Piercing . | . . Highest Corruption . | . . Average Corruption . | . . Corruption Purged . | . . Corruption Blocked . | . . Overload Shots . | . . Overflow Damage . | . . Projectiles . | . . Explosions . | . . Melee . | . . Knockbacks . | . . Impact . | . . Kinetic . | . . Secondary . | . . Self-Inflicted Damage 39 | . 39 Shots 1 | . 1 Rammed . | . . Targets Rammed 5 | 1 4 Kicked 5 | 1 4 Crushed . | . . Highest Temperature 264 | . 264 Average Temperature 96 | . 96 Received Heat Transfer 377 | . 377 Siege Activations . | . . Robots Corrupted . | . . Combat Hostiles . | . . Parts Fried . | . . Impact Corruptions . | . . Robots Melted . | . . Combat Hostiles . | . . Parts Melted . | . . Heat Transferred 50 | . 50 Parts Sabotaged . | . . Parts Stolen . | . . Parts Stripped . | . . Power Chain Reactions 2 | . 2 Alert | -11 -10 ------- Run | Yrd Mat Peak Influence 120 | 20 120 Initial 13 | . 13 Average 21 | 9 25 Maximum Alert Level . | . . Low Security (%) 100 | 100 100 Level 1 . | . . Level 2 . | . . Level 3 . | . . Level 4 . | . . Level 5 . | . . High Security . | . . Max Security . | . . Squads Dispatched 1 | . 1 Investigation . | . . Extermination . | . . Reinforcement 1 | . 1 Assault . | . . Garrison . | . . Intercept . | . . Searches Triggered . | . . Construction Impeded . | . . Haulers Reinforced . | . . Active Scanning Responses . | . . Cargo Convoy Interrupts . | . . Stealth | -11 -10 --------- Run | Yrd Mat Distress Signals 1 | . 1 Communications Jammed . | . . Distress Signals . | . . Times Spotted 15 | . 15 Peak Tracking Total 7 | . 7 Tactical Retreats . | . . Traps | -11 -10 ------- Run | Yrd Mat Traps Triggered 1 | . 1 Indirectly . | . . Trap Hack Attempts . | . . Triggered . | . . Disarmed . | . . Reprogrammed . | . . Reused . | . . Traps Extracted . | . . Installed . | . . Triggered . | . . Machines | -11 -10 ---------- Run | Yrd Mat Machines Disabled 3 | . 3 Max in Single Turn 1 | . 1 Machines Repaired . | . . Machines Dismantled . | . . Machines Sabotaged . | . . Overloaded Fab Kills . | . . Hacking | -11 -10 --------- Run | Yrd Mat Machines Accessed 3 | . 3 Terminals 2 | . 2 Fabricators . | . . Repair Stations . | . . Recycling Units 1 | . 1 Scanalyzers . | . . Garrison Access . | . . Total Hacks 8 | . 8 Successful 5 | . 5 Failed 3 | . 3 Catastrophic . | . . Database Lockouts . | . . Manual 1 | . 1 Terminals 5 | . 5 Fabricators . | . . Repair Stations . | . . Recycling Units 3 | . 3 Scanalyzers . | . . Garrison Access . | . . Terminal Hacks 2 | . 2 Record 2 | . 2 Fabricator Hacks . | . . Repair Station Hacks . | . . Recycling Unit Hacks 3 | . 3 Recycle Component 1 | . 1 Process 2 | . 2 Scanalyzer . | . . Garrison Access Hacks . | . . Unauthorized Hacks . | . . Terminals . | . . Fabricators . | . . Repair Stations . | . . Recycling Units . | . . Scanalyzers . | . . Garrison Access . | . . Data Cores Recovered . | . . Used . | . . Hacking Detections 2 | . 2 Full Trace Events . | . . Feedback Events . | . . Feedback Blocked . | . . Robot Schematics Acquired . | . . Robots Built . | . . Authchips . | . . Time . | . . Total Robot Build Rating . | . . Part Schematics Acquired . | . . Parts Built . | . . Authchips . | . . Time . | . . Total Part Build Rating . | . . Parts Repaired . | . . Time . | . . Parts Recycled 1 | . 1 Recycled Matter 54 | . 54 Retrieved Matter . | . . Retrieved Components . | . . Parts Scanalyzed . | . . Part Schematics Acquired . | . . Parts Damaged . | . . Bothacking | -11 -10 ------------ Run | Yrd Mat Used RIF Installer . | . . Robots Hacked . | . . Non-combat . | . . Combat . | . . Robot Hacks Applied . | . . Relay Couplers Released . | . . Fabnet Peak Effective % . | . . Robots Rewired . | . . Allies Hacked . | . . Hacks Repelled . | . . Allies | -11 -10 -------- Run | Yrd Mat Total Allies . | . . Largest Group . | . . Highest-Rated Group . | . . Highest-Rated Ally . | . . Total Orders . | . . Ally Attacks . | . . Total Damage . | . . Kills . | . . Allies Corrupted . | . . Allies Melted . | . . Intel | -11 -10 ------- Run | Yrd Mat Robot Analysis Total . | . . Derelict Logs Recovered . | . . Drone Launches . | . . Drone Recoveries . | . . Exploration | -11 -10 ------------- Run | Yrd Mat Turns Passed 691 | 168 523 Spaces Moved 318 | 103 215 Core 4 | 4 . Treads . | . . Legs 314 | 99 215 Wheels . | . . Hover . | . . Flight . | . . Fastest Speed 50 | 50 120 Average Speed 164 | 122 184 Slowest Speed 260 | 190 260 Overloaded Moves . | . . Propulsion Burnouts . | . . Robots Hopped . | . . Cave-ins Triggered . | . . Exploration Rate (%) 19 | 8 30 Regions Visited 1 Branch Regions . Pre-discovered Areas . | . . Known Exits Taken . | . . Unknown Exits Taken 1 | 1 . Scrap Searched . | . . Spaces Dug . | . . Terrain Destroyed 5 | . 5 Melee . | . . Projectile . | . . AOE 5 | . 5 Terrain Rammed . | . . Walls Destroyed . | . . Machines Disabled . | . . Actions | -11 -10 --------- Run | Yrd Mat Total 423 | 123 300 Wait 45 | . 45 Move 317 | 102 215 Hop . | . . Pick Up 8 | 4 4 Fast Attach 9 | 7 2 Attach 5 | . 5 Detach 3 | . 3 Swap 2 | . 2 Drop 1 | . 1 Fire 28 | 9 19 Melee . | . . Ram . | . . Kick 5 | 1 4 Crush . | . . Escape Stasis . | . . Rewire . | . . Trap . | . . Miscellaneous . | . . Route ------- -11/Scrapyard -10/Materials History --------- Turn | Location | Event 10 | -11/Scrapyard | Discovered new exit (range 15) 169 | -11/Scrapyard | Entered Materials 304 | -10/Materials | Build established: Mutant 563 | -10/Materials | Core integrity fell below 50% 676 | -10/Materials | Core integrity fell below 20% 692 | -10/Materials | Destroyed by G-47 Trooper with Particle Gun Last Messages --------------- 00657_ G-34 Mercenary destroyed. 00657_ Electrolysis Chamber disabled. 00657_ Switching to secondary target: G-47 Trooper. 00659_ R-06 Scavenger collects Aluminum Leg. 00659_ Shield Generator destroyed. 00661_ G-34 Mercenary destroyed. 00663_ R-06 Scavenger collects Corrupted Sml. Laser. 00665_ G-47 Trooper destroyed. 00666_ R-06 Scavenger collects Corrupted Particle Gun. 00667_ Aluminum Leg destroyed. 00669_ R-06 Scavenger collects Aluminum Leg. 00669_ Acquired 10 matter. 00669_ Imp. EM Shotgun destroyed. 00673_ Critical hit (Burn: +37). 00675_ Aluminum Leg destroyed. 00678_ G-34 Mercenary destroyed. 00679_ Lgt. Ion Engine destroyed. Map ----- +----------------------------------------------------+ | ?????????????????????????????????????????????????? | | ?????????????????????????????????????????????????? | | ?????????????????????????????????????????????????? | | ?????????????????????????????????????????????????? | | ?????????????????????????????????????????????????? | | ?????????????????????????????????????????????????? | | ??????????????????????????? ?????????????????????? | | ?????????????????????????/ ?????????????????????? | | ?????????????????????????# ????????????????????? | | ?????????????????????????# ????????????????????? | | ?????????????????????????# ???????????????????? | | ?????????????????????????# #???????????????????? | | ?????????????????????????# ###?????????? ??????? | | ?????????????????????????# # ??????????? ??????? | | ?????????????????????????# +???????????? ####### | | ?????????????????????????# #???????????? # | | ??????????#??????????????# #???????????# # | | ??????????# ????????????## #########???# # | | ???????????? ??????????# #???# # | | ?????????#####+########## #???# # | | ???????? ] *%[ #???# # | | ???????? ] a != = ###?# # | | ???????? % % "==!#####/###### # ** | | ????????????# [ ""=%## % = ## # ** | | ????????????# *g%"""*[## % = # # | | ????????????# o !g @ [ ## ## | | ????????????# %!=## """"" + | | ????????????# """ "" %[## ## | | ????????????# """ """ %## ## | | ????????????# """ """ ############# | | ????????????# #?????????# | | ????????????# #?????????# | | ????????????# #?????????# | | ????????????# ########## #?????????# | | ?????????????????????????# #?????????# | | ?????????????????????????# #?????????# | | ?????????????????????????# +?????????# | | ?????????????????????????# #?????????# | | ?????????????????????????# #???????### # " | | ?????????????????????????# #?????#?#!! | | ?????????????????????????# #???#???# " | | ?????????????????????????# #???????#[ | | ?????????????????????????# #???????#[ | | ?????????????????????????# ????????#== ###+## | | ?????????????????????????? ????????#== ## # | | ?????????????????????????? ?????#??###### #### | | ??????????????????????????????????????????# #??? | | ??????????????????????????????????????????# ###??? | | ??????????????????????????????????????????# ?????? | | ??????????????????????????????????????????##?????? | +----------------------------------------------------+ Best States ------------- Heat Dissipation 25 Energy Generation 10 Energy Capacity 125 Matter Stores 300 Matter Capacity 300 Sight Range 16 Terrain Scan Range 16 Terrain Scan Density 10 Evasion (%) 55 Item Schematics ----------------- None Robot Schematics ------------------ None Fabricated ------------ Nothing Alien Tech Used ----------------- None Achievements -------------- Storm Trooper Challenges ------------ None Game ------ Seed BiometalMachineCoupler Manual? 0 Play Time 00:11:23 Cumulative 1.6 hours Start 2024.09.03 @ 20:01:26 End 2024.09.03 @ 20:12:15 Sessions 1 Manual Loads 0 Difficulty Rogue Special Mode None Game No. 3 Rogue 3 Adventurer 0 Explorer 0 Win Type - Total 0 Types 0/0/0/0/0/0/0/0/0 Lore% 0 Gallery% 3 Achievement% 3 Wizard Run 0 Options --------- Layout 1 ASCII 1 Keyboard 1 Movement Numpad Keybinds 0 Fullscreen 2 Font 32/Tamsyn Map View 50x40 Zoom Use 0% Tactical HUD 1 Map Filters NONE Filters NONE Steam 1 RUN: e16e2f1b-f670-4ff1-90fb-ffa1c8159632